bitfinex-derivatives/quotes_SOLF0:USTF0_20240907
["timestamp","ask_amount","ask_price","bid_price","bid_amount"]
[1725723087482,3.8788,128.91,128.87,3.8798]
[1725723087677,1.3406,128.94,128.85,27.78213238]
[1725723087872,2.7031,128.95,128.89,23.82]
[1725723088669,2.7031,128.95,128.89,27.75411989]
[1725723089070,3.8781,128.94,128.9,3.879]
[1725723089982,2.7031,128.95,128.87,23.82]
[1725723090176,1.321,128.94,128.87,23.82]
[1725723090376,3.879,128.91,128.87,3.8798]
[1725723090780,1.321,128.94,128.87,23.82]
[1725723090978,3.8784,128.93,128.87,23.82]
[1725723091185,1.321,128.94,128.87,23.82]
[1725723091385,5.199,128.94,128.87,23.82]
[1725723092281,6.5809,128.95,128.89,23.82]
[1725723092479,26.5502,128.99,128.93,3.878]
[1725723092676,2.7302,128.99,128.91,23.82]
[1725723092878,2.7302,128.99,128.86,27.76429134]
[1725723092879,1.2944,129.0,128.96,3.8771]
[1725723093483,5.1707,129.0,128.96,3.8771]
[1725723093689,96.82947474,129.01,128.95,23.82]
[1725723093981,3.8755,129.02,128.95,23.82]
[1725723094378,3.8755,129.02,128.96,3.81517042]
[1725723095587,1.2944,129.03,128.95,23.82]
[1725723095790,25.1144,129.03,128.95,23.82]
[1725723095986,3.8763,129.0,128.96,3.8771]
[1725723096177,25.1144,129.03,128.95,23.82]
[1725723096383,5.24068967,129.02,128.96,3.8773]
[1725723096593,5.24068967,129.02,128.93,23.82]
[1725723096594,29.06068967,129.02,128.93,23.82]
[1725723097084,29.06068967,129.02,128.95,3.8774]
[1725723097284,29.06068967,129.02,128.93,27.69833444]
[1725723097790,28.54068967,129.02,128.91,23.82]
[1725723097986,23.82,129.0,128.91,23.82]
[1725723098386,3.8772,128.97,128.93,3.8781]
[1725723099285,23.82,129.0,128.91,23.82]
[1725723099286,3.8774,128.96,128.92,3.8784]
[1725723099689,23.82,128.98,128.89,23.82]
[1725723099890,3.8778,128.95,128.91,3.8788]
[1725723100187,4.1121,128.97,128.91,3.8788]
[1725723100389,3.8779,128.94,128.9,3.8789]
[1725723101582,23.82,128.96,128.89,3.8793]
[1725723102589,3.8784,128.93,128.89,3.8793]
[1725723103479,3.8784,128.93,128.9,3.8791]
[1725723104090,3.8784,128.93,128.87,23.82]
[1725723104091,23.82,128.96,128.91,3.8788]
[1725723104289,23.82,128.96,128.87,23.82]
[1725723104491,3.8781,128.94,128.9,3.879]
[1725723104885,3.8781,128.94,128.87,23.82]
[1725723105588,3.8781,128.94,128.9,3.8789]
[1725723106595,3.8783,128.93,128.9,3.8789]
[1725723106801,23.82,128.96,128.9,3.8789]
[1725723107492,3.8781,128.94,128.9,3.8789]
[1725723108991,4.1121,128.97,128.86,3.94429134]
[1725723108992,4.1121,128.97,128.89,23.82]
[1725723109599,3.8776,128.95,128.91,3.8786]
[1725723109789,3.8776,128.95,128.89,23.82]
[1725723109989,4.1121,128.97,128.89,23.82]
[1725723110190,3.8775,128.96,128.89,23.82]
[1725723111695,3.8775,128.96,128.92,3.8783]
[1725723112092,4.1121,128.97,128.89,23.82]
[1725723112292,27.9321,128.97,128.89,23.82]
[1725723112590,3.8778,128.95,128.91,3.8786]
[1725723113095,23.82,128.96,128.87,23.82]
[1725723113401,3.95608658,128.95,128.89,3.8793]
[1725723113595,3.8784,128.93,128.89,3.8793]
[1725723114292,3.95608658,128.95,128.88,3.8796]
[1725723114495,47.12,128.96,128.88,3.8796]
[1725723114696,3.8787,128.92,128.88,3.8796]
[1725723114896,3.8787,128.92,128.89,3.8793]
[1725723115099,23.82,128.96,128.87,27.79005198]
[1725723115397,3.8783,128.93,128.87,27.79005198]
[1725723115603,3.8783,128.93,128.89,3.8792]
[1725723115796,47.12,128.96,128.85,23.82]
[1725723116109,47.12,128.96,128.88,3.8796]
[1725723116292,3.8788,128.92,128.88,3.8796]
[1725723117506,3.8784,128.93,128.86,3.91665373]
[1725723117807,3.83943814,128.95,128.87,23.82]
[1725723118007,27.9321,128.97,128.89,3.8793]
[1725723118203,23.82,128.95,128.87,3.85728697]
[1725723118705,4.1121,128.97,128.87,23.82]
[1725723118902,27.9321,128.97,128.87,27.76644935]
[1725723119108,27.9321,128.97,128.89,3.8793]
[1725723119307,3.8784,128.93,128.89,3.8793]
[1725723120103,3.8787,128.92,128.88,3.8796]
[1725723121400,3.8789,128.91,128.87,3.94644935]
[1725723121600,3.8789,128.91,128.87,3.8799]
[1725723121804,3.8789,128.91,128.87,7.84583201]
[1725723122105,3.8789,128.91,128.85,23.82]
[1725723122304,3.8789,128.91,128.85,27.62451652]
[1725723122602,27.75558401,128.94,128.85,27.62451652]
[1725723122808,47.12,128.93,128.85,3.80451652]
[1725723123003,23.82,128.91,128.82,138.32174321]
[1725723123204,3.88,128.88,128.84,3.8808]
[1725723123398,3.88,128.88,128.84,7.85798454]
[1725723123613,3.88,128.88,128.84,3.8808]
[1725723124199,2.7014,128.9,128.84,3.8808]
[1725723124812,2.7014,128.9,128.83,27.77041129]
[1725723125113,1.3578,128.9,128.85,23.82]
[1725723125303,5.237,128.9,128.85,23.82]
[1725723125608,1.3578,128.9,128.83,23.82]
[1725723125816,1.3578,128.9,128.86,3.8801]
[1725723126110,1.3951,128.92,128.86,23.82]
[1725723126407,5.2738,128.92,128.86,23.82]
[1725723126615,1.3951,128.92,128.86,27.62501436]
[1725723126805,1.3951,128.92,128.86,23.82]
[1725723127113,3.8791,128.9,128.87,3.8799]
[1725723127899,3.8795,128.89,128.86,3.8801]
[1725723128109,1.3951,128.92,128.84,27.72717168]
[1725723128302,3.8793,128.9,128.87,3.8798]
[1725723128513,1.3951,128.92,128.87,3.8798]
[1725723129012,1.3951,128.92,128.84,27.72717168]
[1725723129013,3.879,128.91,128.84,27.72717168]
[1725723129313,1.3951,128.92,128.84,27.72717168]
[1725723129506,3.8793,128.9,128.87,3.88]
[1725723130906,1.3951,128.92,128.84,27.72717168]
[1725723131118,3.8789,128.91,128.88,3.8797]
[1725723131710,5.2738,128.92,128.89,3.8794]
[1725723133421,3.8789,128.91,128.88,3.8796]
[1725723134412,1.3951,128.92,128.86,3.8802]
[1725723134706,1.3951,128.92,128.82,162.14174321]
[1725723134707,1.2756,128.9,128.82,162.14174321]
[1725723134915,3.8799,128.88,128.83,3.86224105]
[1725723135110,2.552,128.9,128.82,23.82]
[1725723135614,3.88,128.87,128.84,3.8808]
[1725723138319,3.88,128.87,128.82,23.82]
[1725723138520,3.8798,128.88,128.82,23.82]
[1725723138716,3.8798,128.88,128.83,3.97376183]
[1725723138917,3.8798,128.88,128.84,3.8808]
[1725723139619,2.552,128.9,128.84,23.82]
[1725723139620,3.8795,128.89,128.84,23.82]
[1725723140016,3.8801,128.87,128.84,3.8809]
[1725723141022,3.8799,128.88,128.85,3.8806]
[1725723142313,2.552,128.9,128.83,27.6745144]
[1725723142619,1.2756,128.9,128.85,23.82]
[1725723142827,1.2756,128.9,128.87,3.8798]
[1725723143320,1.2756,128.9,128.88,3.8797]
[1725723144423,5.2737,128.92,128.89,3.8794]
[1725723144723,2.6682,128.95,128.89,23.82]
[1725723145116,3.8779,128.94,128.89,23.82]
[1725723146126,3.8779,128.94,128.9,3.8789]
[1725723149627,3.8782,128.93,128.89,3.8793]
[1725723150927,3.8786,128.92,128.86,3.90553442]
[1725723151118,53.59709544,128.95,128.85,23.82]
[1725723151323,53.59709544,128.95,128.87,3.8798]
[1725723151524,3.879,128.91,128.87,3.8798]
[1725723151724,3.879,128.91,128.85,23.82]
[1725723151926,53.59709544,128.95,128.85,23.82]
[1725723152123,3.8793,128.9,128.85,27.68552339]
[1725723152327,53.59709544,128.95,128.85,27.68552339]
[1725723152527,0.28523186,128.94,128.87,3.8798]
[1725723152927,3.879,128.91,128.87,3.8798]
[1725723153433,3.879,128.91,128.85,27.68552339]
[1725723153434,3.879,128.91,128.88,3.8797]
[1725723154230,3.879,128.91,128.87,3.8799]
[1725723155727,3.8793,128.9,128.87,3.8799]
[1725723155929,23.82,128.93,128.86,3.8803]
[1725723156241,23.82,128.93,128.74,11.6511]
[1725723156242,3.8799,128.88,128.81,23.82]
[1725723156533,3.8799,128.88,128.84,3.8807]
[1725723157128,7.6797676,128.88,128.84,3.8807]
[1725723157728,3.8801,128.87,128.84,3.8807]
[1725723158034,3.8801,128.87,128.83,3.8811]
[1725723158629,3.8801,128.87,128.81,23.82]
[1725723158630,3.8801,128.87,128.84,3.8809]
[1725723159136,3.8801,128.87,128.83,3.8811]
[1725723159835,3.8804,128.86,128.83,3.8811]
[1725723161833,1.2846,128.87,128.81,23.82]
[1725723163228,1.2846,128.87,128.81,27.7017]
[1725723163428,1.2846,128.87,128.81,23.82]
[1725723163834,3.8808,128.85,128.82,3.8815]
[1725723164030,1.2846,128.87,128.79,23.82]
[1725723164429,3.8811,128.84,128.8,3.882]
[1725723164631,1.2846,128.87,128.79,23.82]
[1725723164825,3.8808,128.85,128.81,3.8817]
[1725723165231,1.2846,128.87,128.81,3.8817]
[1725723165834,3.8808,128.85,128.81,3.8817]
[1725723167239,3.8811,128.84,128.8,3.882]
[1725723168640,3.8808,128.85,128.81,3.8818]
[1725723169841,3.881,128.84,128.8,3.882]
[1725723170144,3.881,128.84,128.8,13.432]
[1725723172948,1.3031,128.85,128.68,23.3142]
[1725723173254,9.55,128.84,128.78,9.55]
[1725723173552,3.8817,128.82,128.78,13.4326]
[1725723174547,3.8818,128.81,128.78,13.4326]
[1725723174739,9.55,128.84,128.78,13.4326]
[1725723175144,3.8817,128.82,128.78,13.4326]
[1725723176455,3.8819,128.81,128.78,13.4326]
[1725723177858,3.8816,128.82,128.79,3.8824]
[1725723178656,2.644,128.85,128.81,9.55]
[1725723178851,1.3031,128.85,128.81,9.55]
[1725723179760,5.1839,128.85,128.82,3.8815]
[1725723180057,5.1839,128.85,128.81,9.55]
[1725723180454,5.1839,128.85,128.81,13.4317]
[1725723180655,3.8811,128.84,128.76,3.95856747]
[1725723180857,3.8811,128.84,128.8,3.8819]
[1725723181556,3.8811,128.84,128.8,9.55]
[1725723182050,3.8811,128.84,128.81,3.8818]
[1725723182547,3.8811,128.84,128.8,9.55]
[1725723182548,3.8808,128.85,128.82,9.55]
[1725723182748,3.8808,128.85,128.82,13.4315]
[1725723185350,3.8805,128.86,128.82,13.4315]
[1725723185560,1.2846,128.87,128.82,13.4315]
[1725723186358,3.8808,128.85,128.82,13.4315]
[1725723187951,11.86641085,128.92,128.84,9.55]
[1725723188157,237.9351,129.13,128.91,9.55]
[1725723188356,1.3851,129.13,129.06,9.55]
[1725723188571,4.10340359,129.12,129.06,9.55]
[1725723188767,0.28496762,129.12,129.08,9.55]
[1725723189062,2.7373,129.16,129.13,3.8721]
[1725723189256,1.3851,129.24,128.97,7.759]
[1725723189458,9.55,129.23,129.17,9.55]
[1725723189652,1.3851,129.24,128.99,6.60862333]
[1725723189849,9.55,129.15,129.08,9.55]
[1725723190159,29.75,129.19,129.09,19.9628826]
[1725723190365,29.75,129.19,129.1,19.9628826]
[1725723190660,5.18178616,129.18,129.07,33.71732924]
[1725723190862,5.18178616,129.18,129.09,3.8734]
[1725723191053,5.18178616,129.18,129.1,19.96768291]
[1725723191263,5.18178616,129.18,129.11,19.96793151]
[1725723191456,5.18178616,129.18,129.12,10.79877741]
[1725723191659,1.3771,129.18,129.13,3.88395291]
[1725723191969,1.3771,129.18,129.06,9.39200417]
[1725723191970,29.75,129.17,129.06,9.39200417]
[1725723192270,5.2478,129.18,129.08,3.8737]
[1725723192571,9.03351114,129.18,129.09,19.98106365]
[1725723192873,9.03351114,129.18,129.08,13.26570417]
[1725723192874,3.8712,129.17,129.1,3.88666187]
[1725723193161,5.16281114,129.18,129.07,3.874]
[1725723193375,3.8714,129.16,129.08,19.96911414]
[1725723193661,3.8714,129.16,129.09,10.79906804]
[1725723193868,3.8714,129.16,129.06,29.75]
[1725723193869,3.8716,129.15,129.1,3.88359895]
[1725723194058,3.8716,129.15,129.11,3.88359895]
[1725723194264,5.16281114,129.18,129.06,29.75]
[1725723194560,5.16281114,129.18,129.07,19.96950294]
[1725723194758,5.16281114,129.18,129.08,19.96950294]
[1725723194961,4.89316233,129.18,129.09,10.79896531]
[1725723195270,4.89316233,129.18,129.1,10.79896531]
[1725723195469,3.8714,129.16,129.11,3.88356031]
[1725723195770,4.89316233,129.18,129.12,3.88356031]
[1725723195969,3.8719,129.15,129.08,33.6237]
[1725723196173,3.8719,129.15,129.09,19.97036611]
[1725723196463,29.75,129.17,129.1,3.8837265]
[1725723196667,29.75,129.17,129.11,3.8837265]
[1725723196856,29.75,129.15,129.05,9.39638593]
[1725723197061,29.75,129.15,129.06,19.97837299]
[1725723197062,1.3175,129.14,129.06,19.97837299]
[1725723197362,1.3175,129.14,129.09,29.75]
[1725723197763,1.3175,129.14,129.1,10.80020001]
[1725723198063,348.89316233,129.18,129.09,33.6234]
[1725723198262,348.26561608,129.18,129.09,29.75]
[1725723198660,29.75,129.24,129.11,29.75]
[1725723198971,1.60221735,129.22,129.11,29.75]
[1725723199168,0.28471735,129.21,129.13,29.75]
[1725723199671,1.3175,129.22,129.15,29.75]
[1725723199967,227.0,129.26,129.18,29.75]
[1725723200175,29.75,129.28,129.18,29.75]
[1725723200176,0.28466548,129.25,129.18,29.75]
[1725723200475,2.7342,129.29,129.16,3.88807126]
[1725723200476,2.7342,129.29,129.2,29.75]
[1725723200671,122.29736635,129.33,129.14,29.75]
[1725723200672,227.0,129.34,129.25,29.75]
[1725723200873,0.28452172,129.33,129.25,29.75]
[1725723201173,2.7342,129.35,129.25,29.75]
[1725723201174,0.28452172,129.32,129.25,33.70623547]
[1725723201479,1.3922,129.35,129.25,29.75]
[1725723201772,3.91014717,129.34,129.27,29.75]
[1725723202075,1.3922,129.35,129.27,29.75]
[1725723202371,1.3922,129.35,129.27,33.61638264]
[1725723202576,3.9639814,129.36,129.27,29.75]
[1725723202879,0.28439637,129.35,129.27,29.75]
[1725723203069,0.28439637,129.35,129.23,29.75]
[1725723203375,3.8668,129.32,129.25,3.8685]
[1725723203577,3.90097032,129.35,129.23,33.66644576]
[1725723203873,0.28441046,129.34,129.23,33.66644576]
[1725723204076,29.75,129.36,129.24,3.8689]
[1725723204077,3.8671,129.31,129.24,3.8689]
[1725723204265,29.75,129.34,129.24,3.8689]
[1725723204467,29.75,129.32,129.2,31.1405]
[1725723204768,3.8675,129.29,129.22,3.8693]
[1725723204974,3.88433423,129.31,129.22,3.8693]
[1725723205972,29.75,129.32,129.22,3.8693]
[1725723206173,3.868,129.27,129.22,3.8693]
[1725723206378,33.52678813,129.32,129.21,3.8698]
[1725723206676,29.75,129.29,129.18,29.75]
[1725723206878,29.75,129.29,129.21,3.8698]
[1725723207470,3.8683,129.26,129.21,3.8698]
[1725723208274,3.28046162,129.26,129.21,3.8698]
[1725723208971,3.8684,129.26,129.21,3.8698]
[1725723209571,3.8688,129.25,129.18,29.75]
[1725723211082,33.54884745,129.29,129.18,29.75]
[1725723211275,3.79884745,129.29,129.2,29.75]
[1725723211466,29.75,129.29,129.2,3.87]
[1725723211668,3.8688,129.25,129.2,3.87]
[1725723212277,3.8689,129.24,129.2,3.87]
[1725723212473,3.8689,129.24,129.19,3.8703]
[1725723213179,29.75,129.27,129.18,3.8706]
[1725723213571,3.8691,129.24,129.19,3.8704]
[1725723213974,29.75,129.29,129.19,3.8704]
[1725723214277,3.8692,129.23,129.19,3.8704]
[1725723214982,36.32980479,129.31,129.2,29.75]
[1725723215189,0.28449467,129.3,129.2,29.75]
[1725723215371,3.8688,129.25,129.2,33.6199]
[1725723215872,3.8688,129.25,129.21,3.8698]
[1725723218384,3.31651239,129.25,129.21,3.8698]
[1725723218589,36.32980479,129.31,129.21,3.82296021]
[1725723218886,32.4278,129.31,129.2,29.75]
[1725723219080,3.8676,129.29,129.25,3.8685]
[1725723219583,3.8676,129.29,129.24,3.8688]
[1725723219784,3.8676,129.29,129.23,3.81754141]
[1725723220285,3.8676,129.29,129.25,3.8686]
[1725723220485,3.8676,129.29,129.23,3.81754141]
[1725723221691,3.8676,129.29,129.24,3.8689]
[1725723222177,2.6778,129.31,129.23,3.81754141]
[1725723222380,2.6778,129.31,129.22,29.75]
[1725723222587,3.8667,129.32,129.24,29.75]
[1725723222878,5.17193839,129.34,129.27,29.75]
[1725723223084,1.3457,129.34,129.27,29.75]
[1725723223291,3.8664,129.33,129.28,3.8676]
[1725723223686,3.80147058,129.35,129.27,29.75]
[1725723223881,3.8661,129.34,129.27,29.75]
[1725723224385,3.8657,129.35,129.3,3.8671]
[1725723224780,3.32698057,129.36,129.32,3.8665]
[1725723224982,7.31429099,129.47,129.35,29.75]
[1725723225188,0.28427853,129.46,129.35,29.75]
[1725723225379,29.75,129.45,129.33,29.75]
[1725723225586,0.2842635,129.44,129.33,29.75]
[1725723225884,3.864,129.41,129.35,3.8654]
[1725723226282,1.3576,129.43,129.34,3.87995169]
[1725723226478,1.3576,129.43,129.33,29.75]
[1725723226678,1.3576,129.43,129.33,33.54446975]
[1725723226891,1.3576,129.43,129.33,29.75]
[1725723227080,3.8644,129.4,129.34,3.8657]
[1725723227481,3.8644,129.4,129.33,29.75]
[1725723227685,3.8639,129.41,129.35,3.8654]
[1725723228091,1.3576,129.43,129.36,29.75]
[1725723228292,4.70089722,129.43,129.37,3.8648]
[1725723228491,0.83759722,129.43,129.36,29.75]
[1725723228888,3.8635,129.43,129.36,29.75]
[1725723229093,3.85825773,129.46,129.36,29.75]
[1725723229292,3.8624,129.46,129.4,3.8641]
[1725723229496,3.78672258,129.46,129.38,29.75]
[1725723229692,7.31429099,129.47,129.38,29.75]
[1725723229892,3.8627,129.45,129.39,3.8642]
[1725723230093,11.14238795,129.47,129.38,29.75]
[1725723230695,0.28415327,129.46,129.38,29.75]
[1725723231191,11.14238795,129.47,129.38,29.75]
[1725723231991,3.8631,129.44,129.38,29.75]
[1725723232691,3.8631,129.44,129.4,3.8641]
[1725723233301,3.8631,129.44,129.38,29.75]
[1725723234199,11.14238795,129.47,129.4,3.864]
[1725723234590,11.14238795,129.47,129.38,29.75]
[1725723234788,3.8628,129.45,129.38,29.75]
[1725723235398,3.8628,129.45,129.41,3.8638]
[1725723235795,3.8628,129.45,129.4,3.8639]
[1725723235997,3.8627,129.45,129.4,3.8639]
[1725723236594,3.79715522,129.46,129.38,29.75]
[1725723236796,37.06429099,129.47,129.35,33.70524118]
[1725723237095,0.28417486,129.46,129.35,33.70524118]
[1725723237300,3.8637,129.42,129.35,33.70524118]
[1725723237599,37.06429099,129.47,129.35,33.70524118]
[1725723237797,0.28417707,129.46,129.35,33.70524118]
[1725723238197,0.28417707,129.46,129.35,29.75]
[1725723238403,0.02494646,129.46,129.35,29.75]
[1725723238805,3.8646,129.39,129.35,29.75]
[1725723239204,64.32061105,129.47,129.35,29.75]
[1725723239408,0.28421319,129.46,129.35,33.6154]
[1725723240005,0.28421319,129.46,129.35,29.75]
[1725723240205,29.75,129.44,129.33,29.75]
[1725723240392,1.65801319,129.43,129.33,29.75]
[1725723240596,3.8649,129.38,129.33,29.75]
[1725723240799,1.3738,129.43,129.33,29.75]
[1725723240800,1.3374,129.42,129.33,29.75]
[1725723241003,1.3374,129.42,129.33,33.6162]
[1725723241401,1.3374,129.42,129.33,29.75]
[1725723241601,1.4077,129.41,129.31,156.77002675]
[1725723241996,3.8653,129.37,129.31,160.63662675]
[1725723242214,3.79561614,129.38,129.31,31.1583]
[1725723242507,1.4077,129.41,129.29,29.75]
[1725723242508,29.75,129.4,129.29,29.75]
[1725723242711,0.28430286,129.39,129.29,29.75]
[1725723242905,33.71111367,129.4,129.29,29.75]
[1725723243206,0.28429677,129.39,129.29,29.75]
[1725723243400,33.71111367,129.4,129.29,29.75]
[1725723243905,29.75,129.37,129.27,1.3795]
[1725723244099,1.2888,129.36,129.26,29.75]
[1725723244401,3.8674,129.29,129.24,33.5607397]
[1725723244806,1.4096,129.34,129.24,29.75]
[1725723245003,29.75,129.33,129.24,29.75]
[1725723245195,29.75,129.32,129.22,29.75]
[1725723245504,29.75,129.32,129.2,33.6199]
[1725723245505,3.8687,129.25,129.2,33.6199]
[1725723245697,3.8687,129.25,129.2,29.75]
[1725723246298,3.8689,129.24,129.2,29.75]
[1725723246898,3.8694,129.23,129.18,1.3094]
[1725723247302,1.3127,129.27,129.18,1.3094]
[1725723247501,1.3127,129.27,129.19,33.6202]
[1725723247502,3.95555899,129.26,129.19,33.6202]
[1725723248301,1.3127,129.27,129.19,29.75]
[1725723248798,1.3127,129.27,129.19,33.6201]
[1725723248799,3.8688,129.25,129.19,33.6201]
[1725723249308,3.8688,129.25,129.19,29.75]
[1725723249702,3.8688,129.25,129.19,33.6203]
[1725723250609,3.8688,129.25,129.2,3.8701]
[1725723250805,1.3127,129.27,129.21,29.75]
[1725723251001,1.3058,129.31,129.21,29.75]
[1725723251310,3.8679,129.28,129.22,3.8695]
[1725723251505,2.6829,129.31,129.22,3.8695]
[1725723251700,7.31429099,129.47,129.21,29.75]
[1725723251904,7.31429099,129.47,129.38,29.75]
[1725723252101,7.31429099,129.47,129.41,29.75]
[1725723252505,6.43589099,129.47,129.43,29.75]
[1725723252911,6.43589099,129.47,129.44,3.83689425]
[1725723253216,6.43589099,129.47,129.46,3.8623]
[1725723253905,6.43589099,129.47,129.43,29.75]
[1725723254804,6.43589099,129.47,129.45,29.75]
[1725723255014,6.43589099,129.47,129.45,33.6124]
[1725723255909,6.43589099,129.47,129.46,3.8623]
[1725723256111,6.43589099,129.47,129.45,29.75]
[1725723257019,6.43589099,129.47,129.45,33.6126]
[1725723258217,6.43589099,129.47,129.43,29.75]
[1725723260024,6.43589099,129.47,129.46,33.6123]
[1725723261925,3.8602,129.54,129.49,29.75]
[1725723262323,3.8602,129.54,129.49,33.6112]
[1725723262526,3.8602,129.54,129.49,3.8612]
[1725723263427,0.28397421,129.53,129.45,29.75]
[1725723263630,33.6595,129.55,129.45,29.75]
[1725723263924,0.28398791,129.54,129.45,29.75]
[1725723264223,3.8608,129.52,129.47,3.8618]
[1725723264423,33.6595,129.55,129.45,29.75]
[1725723264424,3.9095,129.55,129.45,29.75]
[1725723264930,3.8608,129.52,129.47,3.8618]
[1725723265126,3.8608,129.52,129.45,29.75]
[1725723265428,3.8603,129.53,129.48,3.8617]
[1725723265627,3.9095,129.55,129.45,29.75]
[1725723265828,0.28396446,129.54,129.47,3.8618]
[1725723266129,0.28396446,129.54,129.45,29.75]
[1725723266328,3.8609,129.51,129.47,3.8618]
[1725723266832,33.6595,129.55,129.46,3.8623]
[1725723267129,0.28399129,129.54,129.46,3.8623]
[1725723267433,0.28399129,129.54,129.44,3.8627]
[1725723267434,3.8615,129.49,129.44,3.8627]
[1725723268230,3.77906527,129.49,129.41,29.75]
[1725723268539,29.75,129.51,129.39,29.75]
[1725723268833,27.2095,129.55,129.39,29.75]
[1725723268834,29.75,129.49,129.39,29.75]
[1725723269033,29.75,129.47,129.37,29.75]
[1725723269326,29.75,129.47,129.35,29.75]
[1725723269327,2.6425,129.46,129.35,29.75]
[1725723269535,29.75,129.45,129.35,29.75]
[1725723269922,3.8639,129.41,129.35,29.75]
[1725723270524,3.8642,129.4,129.36,3.8651]
[1725723270931,3.8642,129.4,129.35,33.6155]
[1725723271129,53.05,129.45,129.35,3.8655]
[1725723271329,29.75,129.45,129.33,29.75]
[1725723271634,3.8642,129.4,129.35,3.8654]
[1725723271829,29.75,129.45,129.33,29.75]
[1725723272230,3.864,129.41,129.36,3.8651]
[1725723272431,29.75,129.45,129.36,3.8651]
[1725723272829,29.75,129.45,129.35,3.8655]
[1725723273230,3.8643,129.4,129.35,3.8655]
[1725723273537,3.8643,129.4,129.33,29.75]
[1725723273538,29.75,129.43,129.33,29.75]
[1725723273834,3.8647,129.38,129.33,29.75]
[1725723274033,3.8647,129.38,129.33,33.6161]
[1725723274235,29.75,129.44,129.33,29.75]
[1725723274428,3.864,129.41,129.35,3.8655]
[1725723274738,29.75,129.44,129.35,3.8655]
[1725723275327,29.75,129.44,129.33,29.75]
[1725723275636,29.75,129.42,129.33,29.75]
[1725723275934,3.8649,129.38,129.33,3.8662]
[1725723276938,3.8649,129.38,129.34,3.8659]
[1725723278140,3.8649,129.38,129.33,3.8661]
[1725723278837,3.8649,129.38,129.34,3.8658]
[1725723279036,3.8644,129.39,129.31,29.75]
[1725723279631,3.8644,129.39,129.34,3.8657]
[1725723280241,3.8648,129.38,129.34,3.8657]
[1725723281639,3.8654,129.36,129.32,3.8665]
[1725723282342,3.49390816,129.35,129.28,29.75]
[1725723282740,3.8662,129.34,129.26,29.75]
[1725723283042,33.8193,129.38,129.26,29.75]
[1725723283241,3.8664,129.33,129.29,3.8671]
[1725723283636,3.8664,129.33,129.26,33.69840655]
[1725723283836,33.8193,129.38,129.29,3.8673]
[1725723284842,33.8193,129.38,129.26,29.75]
[1725723285047,29.75,129.36,129.26,29.75]
[1725723285543,3.8663,129.33,129.29,3.8672]
[1725723285943,29.75,129.36,129.26,29.75]
[1725723286140,3.8664,129.33,129.28,3.8675]
[1725723286642,3.8664,129.33,129.29,3.8673]
[1725723286944,3.8661,129.34,129.26,29.75]
[1725723287238,29.75,129.36,129.29,3.8673]
[1725723287743,3.866,129.34,129.29,3.8673]
[1725723288136,3.866,129.34,129.26,29.75]
[1725723288137,29.75,129.36,129.28,3.8677]
[1725723288339,29.75,129.36,129.24,29.75]
[1725723288543,3.867,129.31,129.24,29.75]
[1725723288745,3.867,129.31,129.27,3.868]
[1725723289133,3.8671,129.3,129.26,3.8682]
[1725723290043,3.8671,129.3,129.27,3.868]
[1725723291732,3.8671,129.3,129.24,29.75]